bitfinex/quotes_BTCUSD_20250901
["timestamp","ask_amount","ask_price","bid_price","bid_amount"]
[1756746094204,0.01078128,108960.0,108950.0,0.44202643]
[1756746094416,0.01078128,108960.0,108950.0,0.28666643]
[1756746094656,0.01078128,108960.0,108950.0,0.78224063]
[1756746095339,0.01078128,108960.0,108950.0,0.46961543]
[1756746095913,0.01078128,108960.0,108950.0,0.31425543]
[1756746096120,0.01078128,108960.0,108950.0,0.46953543]
[1756746096936,0.01078128,108960.0,108950.0,0.83068845]
[1756746097139,0.01078128,108960.0,108950.0,0.49047425]
[1756746097344,0.0101529,108970.0,108960.0,0.18355359]
[1756746097643,0.6802142,108980.0,108970.0,0.18353675]
[1756746097842,0.68892432,108980.0,108970.0,0.18863675]
[1756746098015,0.69095432,108980.0,108970.0,0.18567675]
[1756746098464,0.69095432,108980.0,108970.0,0.18581841]
[1756746098689,1.03438852,108980.0,108970.0,0.18581841]
[1756746098892,1.03438852,108980.0,108970.0,0.18681841]
[1756746099301,1.03438852,108980.0,108970.0,0.18781841]
[1756746099952,0.027588,108990.0,108980.0,0.18351991]
[1756746100154,0.34190752,109000.0,108980.0,0.18565991]
[1756746100357,0.34,108990.0,108980.0,0.18861991]
[1756746100529,0.34,108990.0,108980.0,0.34385991]
[1756746100898,0.34,108990.0,108980.0,0.34381991]
[1756746101101,0.34,108990.0,108980.0,0.37140191]
[1756746102418,0.341,108990.0,108980.0,0.37136191]
[1756746102620,0.34203,108990.0,108980.0,0.36840191]
[1756746102971,0.34203,108990.0,108980.0,0.37040191]
[1756746103176,0.34,108990.0,108980.0,0.37040191]
[1756746103601,0.34,108990.0,108980.0,0.21820191]
[1756746103789,0.34,108990.0,108980.0,0.37340191]
[1756746104664,0.34,108990.0,108980.0,0.37540191]
[1756746105912,0.34203,108990.0,108980.0,0.21724191]
[1756746106056,0.34,108990.0,108980.0,0.37240191]
[1756746106875,0.34203,108990.0,108980.0,0.21724191]
[1756746107075,0.34525,108990.0,108980.0,0.37240191]
[1756746107277,0.34203,108990.0,108980.0,0.21724191]
[1756746107473,0.34203,108990.0,108980.0,0.37244191]
[1756746109115,0.34,108990.0,108980.0,0.37244191]
[1756746109651,0.34203,108990.0,108980.0,0.37244191]
[1756746110057,0.34,108990.0,108980.0,0.37244191]
[1756746110267,0.34203,108990.0,108980.0,0.37244191]
[1756746111129,0.34,108990.0,108980.0,0.37540191]
[1756746111670,0.01014476,109000.0,108990.0,0.18350307]
[1756746111900,0.38374198,109010.0,109000.0,0.18348623]
[1756746112113,0.72577198,109010.0,109000.0,0.18348623]
[1756746112354,0.38577198,109010.0,109000.0,0.18348623]
[1756746112591,0.72598618,109010.0,108990.0,0.21108407]
[1756746112806,0.18670623,109000.0,108990.0,0.21108407]
[1756746113281,0.52895043,109000.0,108990.0,0.21108407]
[1756746113744,0.52895043,109000.0,108990.0,0.36624407]
[1756746113943,0.18873623,109000.0,108990.0,0.21208407]
[1756746114147,0.55597087,109000.0,108990.0,0.36720407]
[1756746114607,0.55597087,109000.0,108990.0,0.36724407]
[1756746115064,0.55597087,109000.0,108990.0,0.36824407]
[1756746115065,0.56622991,109000.0,108990.0,0.36824407]
[1756746116173,0.38274368,109000.0,108990.0,0.37038407]
[1756746116388,0.38274368,109000.0,108990.0,0.36945807]
[1756746117162,0.56622991,109000.0,108990.0,0.36731807]
[1756746118228,0.35572324,109000.0,108990.0,0.36731807]
[1756746119035,0.35572324,109000.0,108990.0,0.36945807]
[1756746119282,0.53920947,109000.0,108990.0,0.36945807]
[1756746119482,0.35047324,109000.0,108990.0,0.36945807]
[1756746119686,0.01025904,109000.0,108990.0,0.37241807]
[1756746120044,0.72362198,109010.0,109000.0,0.18348623]
[1756746120235,0.54218197,109010.0,109000.0,0.18562623]
[1756746120457,0.35214561,109010.0,109000.0,0.18348623]
[1756746120673,0.53883501,109010.0,109000.0,0.18562623]
[1756746120886,0.53883501,109010.0,109000.0,0.18348623]
[1756746121093,0.87904921,109010.0,109000.0,0.18348623]
[1756746122476,0.88004921,109010.0,109000.0,0.18348623]
[1756746122682,0.35636561,109010.0,109000.0,0.18562623]
[1756746122890,1.03524921,109010.0,109000.0,0.18348623]
[1756746123038,1.04382043,109010.0,108990.0,0.21311807]
[1756746123243,1.04382043,109010.0,109000.0,0.18348623]
[1756746123448,0.54840623,109010.0,109000.0,0.18348623]
[1756746123673,0.88862043,109010.0,109000.0,0.18562623]
[1756746124107,0.88004921,109010.0,109000.0,0.18348623]
[1756746124574,0.87904921,109010.0,109000.0,0.18348623]
[1756746124775,0.87904921,109010.0,109000.0,0.18648623]
[1756746124983,0.87904921,109010.0,109000.0,0.003]
[1756746125222,0.87904921,109010.0,109000.0,0.002]
[1756746125431,0.87904921,109010.0,109000.0,0.004]
[1756746125634,1.03424921,109010.0,109000.0,0.18748623]
[1756746126174,1.03424921,109010.0,109000.0,0.004]
[1756746126396,1.05401457,109010.0,109000.0,0.15924]
[1756746126596,1.05401457,109010.0,109000.0,0.004]
[1756746127141,1.06903134,109010.0,109000.0,0.004]
[1756746127372,1.06903134,109010.0,109000.0,0.002]
[1756746127801,1.06903134,109010.0,109000.0,0.001]
[1756746128229,1.06045033,109010.0,109000.0,0.002]
[1756746128682,1.06045033,109010.0,109000.0,0.001]
[1756746128897,0.18348623,109000.0,108990.0,0.46227406]
[1756746129258,0.18866623,109000.0,108990.0,0.46227406]
[1756746129465,0.18866623,109000.0,108990.0,0.46429406]
[1756746129675,0.55590087,109000.0,108990.0,0.187701]
[1756746129877,0.89590087,109000.0,108990.0,0.16008]
[1756746130087,0.92212113,109000.0,108990.0,0.005]
[1756746130672,0.92212113,109000.0,108990.0,0.008]
[1756746131057,0.94970713,109000.0,108990.0,0.008]
[1756746131501,0.94970713,109000.0,108990.0,0.011]
[1756746132530,0.92212113,109000.0,108990.0,0.011]
[1756746132794,1.07736113,109000.0,108990.0,0.011]
[1756746134165,1.10494713,109000.0,108990.0,0.011]
[1756746134599,1.10490713,109000.0,108990.0,0.011]
[1756746135295,1.44512133,109000.0,108990.0,0.011]
[1756746135722,1.28992133,109000.0,108990.0,0.011]
[1756746135934,1.48686428,109000.0,108990.0,0.011]
[1756746136143,1.48042581,109000.0,108990.0,0.011]
[1756746136858,1.48050581,109000.0,108990.0,0.011]
[1756746137080,0.77301697,109000.0,108990.0,0.011]
[1756746137302,1.08564517,109000.0,108990.0,0.011]
[1756746137734,1.08564517,109000.0,108990.0,0.19652307]
[1756746137735,0.93040517,109000.0,108990.0,0.19652307]
[1756746137967,0.88348222,109000.0,108990.0,0.19955307]
[1756746138185,0.8355342,109000.0,108990.0,0.19955307]
[1756746138407,0.71645001,109010.0,109000.0,0.18348623]
[1756746138619,0.71645001,109010.0,109000.0,0.18550623]
[1756746138620,1.05097743,109010.0,109000.0,0.18550623]
[1756746139230,1.03120921,109010.0,109000.0,0.18550623]
[1756746139496,0.87592921,109010.0,109000.0,0.00202]
[1756746139710,1.02907921,109010.0,109000.0,0.00402]
[1756746139915,1.03425921,109010.0,109000.0,0.002]
[1756746140084,1.05402831,109010.0,109000.0,0.002]
[1756746140327,1.07504822,109010.0,109000.0,0.002]
[1756746140574,1.10206866,109010.0,109000.0,0.002]
[1756746140773,1.19398465,109010.0,109000.0,0.002]
[1756746140931,1.19398465,109010.0,109000.0,0.004]
[1756746141126,1.05847359,109010.0,109000.0,0.004]
[1756746141328,1.21379359,109010.0,109000.0,0.004]
[1756746141966,1.1219176,109010.0,109000.0,0.00602]
[1756746142177,1.09489716,109010.0,109000.0,0.00602]
[1756746142383,0.91976822,109010.0,109000.0,0.00602]
[1756746142640,1.07512822,109010.0,109000.0,0.004]
[1756746142840,1.10214866,109010.0,109000.0,0.004]
[1756746143458,1.10214866,109010.0,109000.0,0.00602]
[1756746144494,0.94678866,109010.0,109000.0,0.00602]
[1756746144700,0.73186402,109010.0,109000.0,0.18950623]
[1756746144908,1.07207822,109010.0,109000.0,0.18950623]
[1756746145118,1.07207822,109010.0,109000.0,0.00602]
[1756746145641,1.07512822,109010.0,109000.0,0.00602]
[1756746145841,1.19406465,109010.0,109000.0,0.004]
[1756746146099,1.55404612,109010.0,109000.0,0.004]
[1756746146451,1.21383192,109010.0,109000.0,0.004]
[1756746147062,1.55404612,109010.0,109000.0,0.004]
[1756746147262,1.80109277,109010.0,109000.0,0.004]
[1756746147524,1.89300876,109010.0,109000.0,0.004]
[1756746147697,1.91858294,109010.0,109000.0,0.004]
[1756746148465,1.82666695,109010.0,109000.0,0.004]
[1756746150008,1.33109275,109010.0,109000.0,0.004]
[1756746150205,1.4599661,109010.0,109000.0,0.004]
[1756746150569,1.43439192,109010.0,109000.0,0.004]
[1756746151598,1.43939192,109010.0,109000.0,0.004]
[1756746151947,1.77960612,109010.0,109000.0,0.004]
[1756746152349,1.77960612,109010.0,109000.0,0.002]
[1756746153174,1.77960612,109010.0,108990.0,0.005]
[1756746153175,0.18348623,109000.0,108990.0,0.005]
[1756746153503,1.14118106,109000.0,108990.0,0.005]
[1756746153711,1.14331106,109000.0,108990.0,0.005]
[1756746154137,0.46288266,109000.0,108990.0,0.005]
[1756746154476,0.46288266,109000.0,108990.0,0.006]
[1756746154680,0.46288266,109000.0,108990.0,0.00802]
[1756746154891,0.30760266,109000.0,108990.0,0.006]
[1756746155096,0.46284266,109000.0,108990.0,0.006]
[1756746155561,0.33868623,109000.0,108990.0,0.01216]
[1756746155767,0.33868623,109000.0,108990.0,0.00903]
[1756746155975,0.36780667,109000.0,108990.0,0.00903]
[1756746156293,0.37075667,109000.0,108990.0,0.00903]
[1756746157333,0.36570667,109000.0,108990.0,0.01216]
[1756746157543,0.36570667,109000.0,108990.0,0.00903]
[1756746159308,0.36566667,109000.0,108990.0,0.00903]
[1756746159509,0.21050667,109000.0,108990.0,0.00903]
[1756746159832,0.36562667,109000.0,108990.0,0.00903]
[1756746160503,0.36562667,109000.0,108990.0,0.01216]
[1756746160717,0.36562667,109000.0,108990.0,0.00903]
[1756746161120,0.36772667,109000.0,108990.0,0.00903]
[1756746161829,0.37067667,109000.0,108990.0,0.00903]
[1756746162697,0.36772667,109000.0,108990.0,0.00903]
[1756746162905,0.15504,109000.0,108990.0,0.19566307]
[1756746163123,0.33852623,109000.0,108990.0,0.19566307]
[1756746163687,0.33852623,109000.0,108990.0,0.01216]
[1756746165687,0.18348623,109000.0,108990.0,0.01216]
[1756746165898,0.33848623,109000.0,108990.0,0.01216]
[1756746166049,0.33848623,109000.0,108990.0,0.19566307]
[1756746167338,0.33848623,109000.0,108990.0,0.01216]
[1756746167685,0.33848623,109000.0,108990.0,0.19566307]
[1756746168101,0.33848623,109000.0,108990.0,0.01216]
[1756746168516,0.33848623,109000.0,108990.0,0.19566307]
[1756746168723,0.33844623,109000.0,108990.0,0.19566307]
[1756746169380,0.33844623,109000.0,108990.0,0.01216]
[1756746169799,0.33844623,109000.0,108990.0,0.19566307]
[1756746169999,0.34054623,109000.0,108990.0,0.00903]
[1756746170203,0.33844623,109000.0,108990.0,0.19566307]
[1756746171826,0.33844623,109000.0,108990.0,0.01216]
[1756746172041,0.34349623,109000.0,108990.0,0.007]
[1756746172869,0.37051667,109000.0,108990.0,0.007]
[1756746173868,0.16396897,109000.0,108990.0,0.007]
[1756746174304,0.3474552,109000.0,108990.0,0.007]
[1756746177155,0.43937119,109000.0,108990.0,0.007]
[1756746177334,0.45915816,109000.0,108990.0,0.007]
[1756746180026,0.55107415,109000.0,108990.0,0.007]
[1756746180027,0.5775608,109000.0,108990.0,0.007]
[1756746180302,0.48564481,109000.0,108990.0,0.007]
[1756746185368,1.29897198,109000.0,108990.0,0.007]
[1756746185620,6.29897198,109000.0,108990.0,0.007]
[1756746185863,6.34962345,109000.0,108990.0,0.007]
[1756746187136,6.46247826,109000.0,108990.0,0.006]
[1756746187395,0.33351991,108980.0,108970.0,0.00014166]
[1756746187611,1.01074287,108980.0,108970.0,0.00014166]
[1756746187839,1.06965357,108980.0,108970.0,0.00014166]
[1756746188086,6.09434232,108980.0,108970.0,0.00014166]
[1756746188339,6.16390693,108980.0,108970.0,0.00014166]
[1756746188571,6.13921818,108980.0,108970.0,0.00014166]
[1756746189461,6.13921818,108980.0,108970.0,0.00114166]
[1756746189879,6.13921818,108980.0,108970.0,0.00214166]
[1756746190086,0.15,108960.0,108930.0,0.07653631]
[1756746190300,0.52554729,108940.0,108930.0,0.07566283]
[1756746190530,0.52554729,108940.0,108930.0,0.07363283]
[1756746190531,0.82985796,108940.0,108930.0,0.07363283]
[1756746190771,0.82985796,108940.0,108930.0,8.652e-05]
[1756746190970,0.79792733,108940.0,108930.0,8.652e-05]
[1756746191615,0.95296733,108940.0,108930.0,8.652e-05]
[1756746192615,0.99503089,108940.0,108930.0,0.00308652]
[1756746193252,0.99503089,108940.0,108930.0,8.652e-05]
[1756746193517,0.99603089,108940.0,108930.0,0.00211652]
[1756746193729,1.00614025,108940.0,108930.0,8.652e-05]
[1756746193942,0.85110025,108940.0,108930.0,8.652e-05]
[1756746194061,1.00618025,108940.0,108930.0,8.652e-05]
[1756746194996,1.00618025,108940.0,108930.0,0.00211652]
[1756746195233,1.06219209,108940.0,108930.0,8.652e-05]
[1756746195600,1.06219209,108940.0,108930.0,0.00211652]
[1756746196815,0.39317292,108940.0,108930.0,0.00510652]
[1756746197015,0.39317292,108940.0,108930.0,0.18871066]
[1756746197016,0.01110936,108940.0,108930.0,0.18871066]
[1756746197427,0.35110936,108940.0,108930.0,0.18871066]
[1756746197626,0.001,108940.0,108930.0,0.28062665]
[1756746197829,0.40417044,108970.0,108950.0,0.18356455]
[1756746197830,0.67867447,108960.0,108950.0,0.18356455]
[1756746198032,0.15,108970.0,108960.0,0.18355359]
[1756746198236,0.16021304,108970.0,108960.0,0.18857359]
[1756746198686,0.50021304,108970.0,108960.0,0.18857359]
[1756746198808,0.16021304,108970.0,108960.0,0.18857359]
[1756746199258,0.01021304,108970.0,108960.0,0.18857359]
[1756746199463,0.35021304,108970.0,108960.0,0.18857359]
[1756746199688,0.34,108970.0,108960.0,0.18857359]
[1756746199896,0.34,108970.0,108960.0,0.19057359]
[1756746200053,0.34,108970.0,108960.0,0.19257359]
[1756746200911,0.35013737,108970.0,108960.0,0.19257359]
[1756746204943,0.34989382,108970.0,108960.0,0.19257359]
[1756746205946,0.34989382,108970.0,108960.0,0.34765359]
[1756746206181,0.34989382,108970.0,108960.0,0.19257359]
[1756746206415,0.35185382,108970.0,108960.0,0.18958359]
[1756746206683,0.34989382,108970.0,108960.0,0.19257359]
[1756746208090,0.55730304,108970.0,108960.0,0.19257359]
[1756746208550,0.37376629,108970.0,108960.0,0.19257359]
[1756746209731,0.34989382,108970.0,108960.0,0.19257359]
[1756746210922,0.00989382,108970.0,108960.0,0.19257359]
[1756746211132,0.04111418,108980.0,108970.0,0.18353675]
[1756746211341,0.04111418,108980.0,108970.0,0.34379675]
[1756746212179,0.04111418,108980.0,108970.0,0.34479675]
[1756746212394,0.04111418,108980.0,108970.0,0.34488327]
[1756746214574,0.05105928,108980.0,108970.0,0.34488327]
[1756746216557,0.05105928,108980.0,108970.0,0.43679926]
[1756746217180,0.0371569,108980.0,108970.0,0.43679926]
[1756746217388,0.0371569,108980.0,108970.0,0.28155926]
[1756746217591,0.0371569,108980.0,108970.0,0.43659926]
[1756746219079,0.0272118,108980.0,108970.0,0.83659926]
[1756746219281,0.84074097,109000.0,108990.0,0.18350307]
[1756746219493,1.17336643,109000.0,108990.0,0.18555307]
[1756746219710,1.01507643,109000.0,108990.0,0.18555307]
[1756746219939,1.01832643,109000.0,108990.0,0.18555307]
[1756746220500,0.3893402,109000.0,108990.0,0.18555307]
[1756746220723,0.57282643,109000.0,108990.0,0.18555307]
[1756746220924,0.57282643,109000.0,108990.0,0.18350307]
[1756746221128,0.57282643,109000.0,108980.0,0.33850457]
[1756746221370,0.58244346,109000.0,108990.0,0.18350307]
[1756746221746,0.58144346,109000.0,108990.0,0.18350307]
[1756746221944,0.57944346,109000.0,108990.0,0.18350307]
[1756746222308,0.58244346,109000.0,108990.0,0.18350307]
[1756746222535,0.58044346,109000.0,108980.0,0.18350457]
[1756746222745,0.58044346,109000.0,108990.0,0.18350307]
[1756746222948,0.58044346,109000.0,108990.0,0.002]
[1756746223153,0.58044346,109000.0,108990.0,0.18550307]
[1756746223338,0.57944346,109000.0,108990.0,0.18550307]
[1756746223765,0.57944346,109000.0,108990.0,0.18750307]
[1756746223993,0.57944346,109000.0,108990.0,0.004]
[1756746224408,0.57944346,109000.0,108990.0,0.18750307]
[1756746224771,0.57944346,109000.0,108990.0,0.004]
[1756746225369,0.57944346,109000.0,108990.0,0.18750307]
[1756746226760,0.57619346,109000.0,108990.0,0.18955307]
[1756746227591,0.57419346,109000.0,108990.0,0.19277307]
[1756746227799,0.57619346,109000.0,108990.0,0.18955307]
[1756746229540,0.57944346,109000.0,108990.0,0.34451307]
[1756746231240,0.39595723,109000.0,108990.0,0.34451307]
[1756746231507,0.57619346,109000.0,108990.0,0.34451307]
[1756746232139,0.39270723,109000.0,108990.0,0.34451307]
[1756746232523,0.34961703,109000.0,108990.0,0.34773307]
[1756746232696,0.00961703,109000.0,108990.0,0.34773307]
[1756746232902,0.34,109010.0,109000.0,0.18348623]
[1756746233118,0.34,109010.0,109000.0,0.1878298]
[1756746233665,0.34985904,109010.0,109000.0,0.1878298]
[1756746233886,0.34985904,109010.0,109000.0,0.1910498]
[1756746234093,0.34985904,109010.0,109000.0,0.18875623]
[1756746234299,0.34985904,109010.0,109000.0,0.18975623]
[1756746234901,0.35185904,109010.0,109000.0,0.34149623]
[1756746235108,0.35510904,109010.0,109000.0,0.34149623]
[1756746235550,0.34985904,109010.0,109000.0,0.34471623]
[1756746235693,0.34985904,109010.0,109000.0,0.18975623]
[1756746235912,0.35185904,109010.0,109000.0,0.34149623]
[1756746236115,0.34985904,109010.0,109000.0,0.34471623]
[1756746236541,0.00985904,109010.0,109000.0,0.34471623]
[1756746236745,0.34325,109020.0,109010.0,0.1834694]
[1756746237106,0.34,109020.0,109010.0,0.1855194]
[1756746237341,0.34961836,109020.0,109010.0,0.1855194]
[1756746237553,0.3932917,109020.0,109010.0,0.1855194]
[1756746238126,0.01161836,109020.0,109010.0,0.1855194]
[1756746238319,0.01261836,109020.0,109010.0,0.1855194]
[1756746239124,0.01486836,109020.0,109010.0,0.1855194]
[1756746239716,0.01486836,109020.0,109010.0,0.3424794]
[1756746240170,0.01486836,109020.0,109010.0,0.1885194]
[1756746240397,0.01486836,109020.0,109010.0,0.3414294]
[1756746240612,0.00961836,109020.0,109010.0,0.3466994]
[1756746240818,0.00961836,109020.0,109010.0,0.3456994]
[1756746241030,0.34184598,109030.0,109020.0,0.18345257]
[1756746241239,0.18888575,109030.0,109020.0,0.18345257]
[1756746241854,0.52888575,109030.0,109020.0,0.18345257]
[1756746242619,0.56985726,109030.0,109020.0,0.18345257]
[1756746242828,0.57987871,109030.0,109020.0,0.18345257]
[1756746243276,0.57987871,109030.0,109020.0,0.18445257]
[1756746243494,0.39119296,109030.0,109020.0,0.18650257]
[1756746243836,0.57662871,109030.0,109020.0,0.18650257]
[1756746244058,0.57987871,109030.0,109020.0,0.18445257]
[1756746244681,0.35547145,109030.0,109020.0,0.18650257]
[1756746244823,0.5389072,109030.0,109020.0,0.34142257]
[1756746245245,0.5389072,109030.0,109020.0,0.34445257]
[1756746245246,0.01022145,109030.0,109020.0,0.34445257]
[1756746246174,0.01233145,109030.0,109020.0,0.34142257]
[1756746246394,0.01536145,109030.0,109020.0,0.34142257]
[1756746246621,0.5387972,109030.0,109020.0,0.18445257]
[1756746246821,0.5387972,109030.0,109020.0,0.33937257]
[1756746247604,0.56266967,109030.0,109020.0,0.33937257]
[1756746247838,0.56266967,109030.0,109020.0,0.18445257]
[1756746248025,0.56266967,109030.0,109020.0,0.33937257]
[1756746248226,0.56266967,109030.0,109020.0,0.15592]
[1756746248474,0.56266967,109030.0,109020.0,0.33937257]
[1756746248900,0.56266967,109030.0,109020.0,0.34136257]
[1756746249091,0.56266967,109030.0,109020.0,0.33937257]
[1756746249391,0.56266967,109030.0,109020.0,0.18445257]
[1756746249681,0.56266967,109030.0,109020.0,0.33937257]
[1756746249902,0.56266967,109030.0,109020.0,0.15592]
[1756746250138,0.56266967,109030.0,109020.0,0.33937257]
[1756746250342,0.56266967,109030.0,109020.0,0.15592]
[1756746250921,0.21963967,109030.0,109020.0,0.34136257]
[1756746251154,0.22266967,109030.0,109020.0,0.34136257]
[1756746251797,0.22266967,109030.0,109020.0,0.33937257]
[1756746255782,0.22266967,109030.0,109020.0,0.34136257]
[1756746255986,0.01536145,109030.0,109020.0,0.34136257]
[1756746256399,0.1987972,109030.0,109020.0,0.34136257]
[1756746257157,0.1987972,109030.0,109020.0,0.33937257]
[1756746257614,0.1987972,109030.0,109020.0,0.34136257]
[1756746258703,0.1987972,109030.0,109020.0,0.18445257]
[1756746258938,0.1987972,109030.0,109020.0,0.33933257]
[1756746259690,0.1987972,109030.0,109020.0,0.15588]
[1756746260132,0.1987972,109030.0,109020.0,0.33933257]
[1756746260336,0.1987972,109030.0,109020.0,0.001]
[1756746260516,0.1987972,109030.0,109020.0,0.33933257]
[1756746260712,0.1987972,109030.0,109020.0,0.34132257]
[1756746260917,0.2263732,109030.0,109020.0,0.34132257]
[1756746261318,0.03990745,109030.0,109020.0,0.34132257]
[1756746261759,0.01233145,109030.0,109020.0,0.34132257]
[1756746262837,0.01022145,109030.0,109020.0,0.34435257]
[1756746263425,0.1936572,109030.0,109020.0,0.34435257]
[1756746263633,0.1957672,109030.0,109020.0,0.34132257]
[1756746263859,0.1957672,109030.0,109020.0,0.34435257]
[1756746264033,0.1936572,109030.0,109020.0,0.34435257]
[1756746264835,0.01022145,109030.0,109020.0,0.34435257]
[1756746266127,0.1936572,109030.0,109020.0,0.34435257]
[1756746266581,0.01022145,109030.0,109020.0,0.34435257]
[1756746267915,0.1987972,109030.0,109020.0,0.15588]
[1756746268961,0.1987972,109030.0,109020.0,0.001]
[1756746269232,0.5824406,109030.0,109020.0,0.001]
[1756746269470,0.85193559,109030.0,109020.0,0.001]
[1756746269961,0.87842224,109030.0,109020.0,0.001]
[1756746270453,0.90352923,109030.0,109020.0,0.001]
[1756746272127,0.52346772,109020.0,109010.0,0.1834694]
[1756746272373,0.1834694,109010.0,109000.0,0.34139623]
[1756746272629,0.1886094,109010.0,109000.0,0.33836623]
[1756746272904,0.70592772,109020.0,109000.0,0.34338623]
[1756746273152,0.70592772,109020.0,109010.0,0.1864994]
[1756746273153,0.55104772,109020.0,109010.0,0.1864994]
[1756746273397,0.55104772,109020.0,109010.0,0.1884894]
[1756746273642,0.1834694,109010.0,108990.0,0.19267822]
[1756746273877,0.1834694,109010.0,109000.0,0.34235623]
[1756746274116,0.1834694,109010.0,109000.0,0.34035623]
[1756746274357,0.1834694,109010.0,109000.0,0.34338623]
[1756746275514,0.1834694,109010.0,109000.0,0.34538623]
[1756746276169,0.1834694,109010.0,109000.0,0.34738623]
[1756746276809,0.70895772,109020.0,109000.0,0.34738623]
[1756746277223,0.1834694,109010.0,109000.0,0.34738623]
[1756746278401,0.1834694,109010.0,109000.0,0.34538623]
[1756746279292,0.1834694,109010.0,109000.0,0.34438623]
[1756746279703,0.1834694,109010.0,109000.0,0.34135623]
[1756746279942,0.1834694,109010.0,109000.0,0.34428623]
[1756746280143,0.1834694,109010.0,109000.0,0.34328623]
[1756746280322,0.1834694,109010.0,109000.0,0.34528623]
[1756746280995,0.1854894,109010.0,109000.0,0.34235623]
[1756746281415,0.1885294,109010.0,109000.0,0.002]
[1756746281630,0.1885294,109010.0,109000.0,0.15888]
[1756746281864,0.21240187,109010.0,109000.0,0.15888]
[1756746282844,0.21240187,109010.0,109000.0,0.004]
[1756746283317,0.21240187,109010.0,109000.0,0.15888]
[1756746283770,0.23998287,109010.0,109000.0,0.15888]
[1756746284635,0.23998287,109010.0,109000.0,0.15488]
[1756746285017,0.23998287,109010.0,109000.0,0.15588]
[1756746285455,0.23998287,109010.0,109000.0,0.15488]
[1756746285785,0.23998287,109010.0,109000.0,0.15688]
[1756746286935,0.23998287,109010.0,109000.0,0.15888]
[1756746288852,0.23694287,109010.0,109000.0,0.34448623]
[1756746289066,0.2110504,109010.0,109000.0,0.34448623]
[1756746289255,0.027581,109010.0,109000.0,0.34741623]
[1756746290140,0.52346772,109020.0,109000.0,0.34741623]
[1756746290378,0.55104672,109020.0,109000.0,0.34741623]
[1756746290910,0.55104672,109020.0,109000.0,0.34541623]
[1756746291221,0.55104672,109020.0,109010.0,0.1834694]
[1756746291423,0.55306672,109020.0,109010.0,0.1855894]
[1756746291581,0.55610672,109020.0,109010.0,0.1855894]
[1756746292397,0.55610672,109020.0,109010.0,0.1865894]
[1756746293058,0.55103157,109020.0,109010.0,0.1895194]
[1756746293519,0.55305157,109020.0,109010.0,0.1865894]
[1756746294271,0.55609157,109020.0,109010.0,0.1865894]
[1756746294694,0.55305157,109020.0,109010.0,0.1865894]
[1756746295095,0.55103157,109020.0,109010.0,0.1865894]
[1756746295572,0.55103157,109020.0,109010.0,0.1895194]
[1756746296195,0.55103157,109020.0,109010.0,0.1865894]
[1756746296401,0.55305157,109020.0,109010.0,0.1865894]
[1756746296820,0.55609157,109020.0,109010.0,0.001]
[1756746297251,0.55609157,109020.0,109010.0,0.15588]
[1756746298775,0.55609157,109020.0,109010.0,0.3414694]
[1756746298990,0.55609157,109020.0,109010.0,0.15588]
[1756746299671,0.57996404,109020.0,109010.0,0.001]
[1756746302793,0.67188003,109020.0,109010.0,0.001]
[1756746303027,0.84164118,109020.0,109010.0,0.001]
[1756746303593,0.18348623,109000.0,108990.0,0.15488]
[1756746303794,0.18350307,108990.0,108980.0,0.66621708]
[1756746304010,0.18350307,108990.0,108980.0,0.91513307]
[1756746304208,0.18350307,108990.0,108980.0,0.66833708]
[1756746304425,0.18350307,108990.0,108980.0,0.82321708]
[1756746304634,0.18350307,108990.0,108980.0,0.42321708]
[1756746305984,0.18350307,108990.0,108980.0,0.26833708]
[1756746306219,0.18350307,108990.0,108980.0,0.42321708]
[1756746306456,0.18350307,108990.0,108980.0,0.42621708]
[1756746307271,0.18350307,108990.0,108980.0,0.42921708]
[1756746307577,0.18850307,108990.0,108980.0,0.27140708]
[1756746307788,0.21237554,108990.0,108980.0,0.23148652]
[1756746307988,0.21237554,108990.0,108980.0,0.41500643]
[1756746308654,0.21237554,108990.0,108980.0,0.41710643]
[1756746308867,0.20937554,108990.0,108980.0,0.41710643]
[1756746309055,0.20937554,108990.0,108980.0,0.41410643]
[1756746309307,0.18550307,108990.0,108980.0,0.41410643]
[1756746309518,0.18350307,108990.0,108980.0,0.41610643]
[1756746309730,0.21106923,109000.0,108990.0,0.18350307]
[1756746309946,0.21106923,109000.0,108990.0,0.18560307]
[1756746310157,0.21306923,109000.0,108990.0,0.18560307]
[1756746310573,0.027583,109000.0,108990.0,0.18560307]
[1756746310815,0.027583,109000.0,108990.0,0.19104685]
[1756746311025,0.72966968,109010.0,109000.0,0.18348623]
[1756746311026,0.52348465,109010.0,109000.0,0.18348623]
[1756746311237,0.52348465,109010.0,109000.0,0.34361623]
[1756746311445,0.55106465,109010.0,109000.0,0.34361623]
[1756746311905,0.5510494,109010.0,109000.0,0.34361623]
[1756746312135,0.36758,109010.0,109000.0,0.34361623]
[1756746313431,0.36758,109010.0,109000.0,0.34761623]
[1756746313654,0.34,109010.0,109000.0,0.34761623]
[1756746314082,0.367578,109020.0,109010.0,0.1834694]
[1756746314285,0.55103057,109020.0,109010.0,0.1887194]
[1756746314753,0.367578,109020.0,109010.0,0.1887194]
[1756746315379,0.55303057,109020.0,109010.0,0.1855694]
[1756746315623,0.55103057,109020.0,109010.0,0.1897194]
[1756746316339,0.367578,109020.0,109010.0,0.1897194]
[1756746317028,0.55103057,109020.0,109010.0,0.1865694]
[1756746317459,0.367578,109020.0,109010.0,0.1897194]
[1756746318018,0.369578,109020.0,109010.0,0.1865694]
[1756746318442,0.55303057,109020.0,109010.0,0.1865694]
[1756746318619,0.55303057,109020.0,109010.0,0.3414494]
[1756746318817,0.55103057,109020.0,109010.0,0.3445994]
[1756746319300,0.367578,109020.0,109010.0,0.3445994]
[1756746319911,0.55103057,109020.0,109010.0,0.3445994]
[1756746320344,0.34,109020.0,109010.0,0.3445994]
[1756746320575,0.34,109020.0,109010.0,0.3414494]
[1756746320801,0.34,109020.0,109010.0,0.3445994]
[1756746322170,0.52345257,109020.0,109010.0,0.3445994]
[1756746322993,0.34,109020.0,109010.0,0.3445994]
[1756746324990,0.01022145,109030.0,109020.0,0.18345257]
[1756746325231,0.1936572,109030.0,109020.0,0.18784572]
[1756746325436,0.01022145,109030.0,109020.0,0.19099572]
[1756746325651,0.01022145,109030.0,109020.0,0.18870257]
[1756746325885,0.1936572,109030.0,109020.0,0.58555257]
[1756746326110,0.1986572,109030.0,109020.0,0.73829257]
[1756746326332,0.1986572,109030.0,109020.0,0.55484]
[1756746326562,0.2006572,109030.0,109020.0,0.4]
[1756746326777,0.2006572,109030.0,109020.0,0.15484]
[1756746326990,0.18345257,109020.0,109010.0,0.07056]
[1756746327209,0.18845257,109020.0,109010.0,0.55484]